fUSD/lending_fUSD_20240905
["ID","MTS","AMOUNT","RATE_DAILY","PERIOD"]
[337263551,1725555041285,-500.0,0.00014995,2]
[337263552,1725555041295,-524.48,0.00014995,2]
[337263553,1725555041305,-871.73,0.00014995,2]
[337263554,1725555041314,-500.0,0.00014995,2]
[337263555,1725555041324,-4516.97,0.00014995,2]
[337263556,1725555041333,-1943.95,0.00014995,2]
[337263557,1725555041343,-500.0,0.00014995,2]
[337263558,1725555041352,-500.0,0.00014995,2]
[337263559,1725555041361,-1545.88,0.00014995,2]
[337263560,1725555041370,-500.0,0.00014995,2]
[337263561,1725555041382,-500.0,0.00014995,2]
[337263562,1725555041391,-500.0,0.00014995,2]
[337263563,1725555041401,-870.22,0.00014995,2]
[337263564,1725555041413,-500.0,0.00014996,2]
[337263565,1725555041423,-500.0,0.00014996,2]
[337263566,1725555041433,-500.0,0.00014996,2]
[337263567,1725555041442,-584.87,0.00014996,2]
[337263568,1725555041452,-584.87,0.00014996,2]
[337263569,1725555041462,-500.0,0.00014996,2]
[337263570,1725555041471,-500.0,0.00014996,2]
[337263571,1725555041480,-500.0,0.00014996,2]
[337263572,1725555041490,-500.0,0.00014996,2]
[337263573,1725555041499,-500.0,0.00014996,2]
[337263574,1725555041509,-500.0,0.00014996,2]
[337263575,1725555041518,-287.08595276,0.00014996,2]
[337263576,1725555041528,-500.0,0.00014996,2]
[337263577,1725555041538,-500.0,0.00014996,2]
[337263578,1725555041547,-564.36196693,0.00014996,2]
[337263579,1725555041559,-566.08503671,0.00014996,2]
[337263580,1725555041568,-614.0519011,0.00014996,2]
[337263581,1725555041578,-500.0,0.00014996,2]
[337263582,1725555041587,-500.0,0.00014996,2]
[337263583,1725555041597,-500.0,0.00014996,2]
[337263584,1725555041606,-500.0,0.00014996,2]
[337263585,1725555041615,-500.0,0.00014996,2]
[337263586,1725555041625,-419.76,0.00014996,2]
[337263587,1725555041637,-499.02,0.00014996,2]
[337263588,1725555041647,-455.3,0.00014996,2]
[337263589,1725555041656,-500.0,0.00014996,2]
[337263590,1725555041665,-500.0,0.00014996,2]
[337263591,1725555041674,-213.30429897,0.00014996,2]
[337263592,1725555041683,-500.0,0.00014996,2]
[337263593,1725555041693,-500.0,0.00014996,2]
[337263594,1725555041702,-500.0,0.00014996,2]
[337263595,1725555041711,-500.0,0.00014996,2]
[337263596,1725555041721,-500.0,0.00014996,2]
[337263597,1725555041730,-287.45,0.00014996,2]
[337263598,1725555041740,-500.0,0.00014996,2]
[337263599,1725555041749,-541.1,0.00014996,2]
[337263600,1725555041758,-500.0,0.00014996,2]
[337263601,1725555041768,-500.0,0.00014996,2]
[337263602,1725555041778,-500.0,0.00014996,2]
[337263603,1725555041787,-403.82,0.00014996,2]
[337263604,1725555041796,-500.0,0.00014996,2]
[337263605,1725555041806,-227.84,0.00014996,2]
[337263606,1725555041816,-500.0,0.00014996,2]
[337263607,1725555041825,-276.89,0.00014996,2]
[337263608,1725555041834,-500.0,0.00014996,2]
[337263609,1725555041844,-500.0,0.00014996,2]
[337263610,1725555041853,-500.0,0.00014996,2]
[337263611,1725555041862,-224.66,0.00014996,2]
[337263612,1725555041872,-500.0,0.00014996,2]
[337263613,1725555041883,-500.0,0.00014996,2]
[337263614,1725555041892,-500.0,0.00014996,2]
[337263615,1725555041902,-500.0,0.00014996,2]
[337263616,1725555041912,-500.0,0.00014996,2]
[337263617,1725555041921,-214.50692903,0.00014996,2]
[337263618,1725555042153,-289.8028466,0.00014993,2]
[337263619,1725555042813,-321.20748465,0.00014796,2]
[337263620,1725555042822,-321.20748464,0.000149,2]
[337263621,1725555042831,-96.69304607,0.00014993,2]
[337263622,1725555042841,-285.49307097,0.00014996,2]
[337263623,1725555042850,-531.83,0.00014996,2]
[337263624,1725555042859,-174.34,0.00014996,2]
[337263625,1725555042868,-989.81,0.00014996,2]
[337263626,1725555042878,-500.0,0.00014996,2]
[337263627,1725555042889,-989.81,0.00014996,2]
[337263628,1725555042898,-325.81185914,0.00014996,2]
[337263629,1725555042907,-500.0,0.00014996,2]
[337263630,1725555042917,-500.0,0.00014996,2]
[337263631,1725555042926,-44.39705453,0.00014996,2]
[337263632,1725555042938,-1686.54294547,0.00014996,2]
[337263633,1725555042947,-246.14263001,0.00014996,2]
[337263634,1725555042963,-1484.79736999,0.00014996,2]
[337263635,1725555042972,-500.0,0.00014996,2]
[337263636,1725555042981,-500.0,0.00014996,2]
[337263637,1725555042990,-500.0,0.00014996,2]
[337263638,1725555042999,-647.26,0.00014996,2]
[337263639,1725555043009,-4107.88,0.00014996,2]
[337263640,1725555043018,-4107.88,0.00014996,2]
[337263641,1725555043028,-566.2,0.00014996,2]
[337263642,1725555043037,-500.0,0.00014996,2]
[337263643,1725555043047,-500.0,0.00014996,2]
[337263644,1725555043056,-542.4,0.00014996,2]
[337263645,1725555043065,-500.0,0.00014996,2]
[337263646,1725555043074,-500.0,0.00014996,2]
[337263647,1725555043084,-953.4,0.00014996,2]
[337263648,1725555043093,-953.4,0.00014996,2]
[337263649,1725555043102,-500.0,0.00014996,2]
[337263651,1725555043112,-500.0,0.00014996,2]
[337263652,1725555043121,-500.0,0.00014996,2]
[337263654,1725555043131,-500.0,0.00014996,2]
[337263655,1725555043140,-500.0,0.00014996,2]
[337263656,1725555043149,-500.0,0.00014996,2]
[337263657,1725555043159,-500.0,0.00014996,2]
[337263658,1725555043168,-500.0,0.00014996,2]
[337263659,1725555043177,-500.0,0.00014996,2]
[337263660,1725555043186,-500.0,0.00014996,2]
[337263661,1725555043195,-3940.89,0.00014996,2]
[337263662,1725555043204,-3776.91655557,0.00014996,2]
[337263663,1725555043216,-163.97344443,0.00014996,2]
[337263665,1725555043225,-500.0,0.00014996,2]
[337263666,1725555043234,-500.0,0.00014996,2]
[337263667,1725555043244,-2025.48,0.00014996,2]
[337263668,1725555043253,-5459.23,0.00014996,2]
[337263669,1725555043262,-1089.79,0.00014996,2]
[337263670,1725555043272,-5059.8805174,0.00014996,2]
[337263671,1725555043283,-399.3494826,0.00014996,2]
[337263672,1725555043292,-2025.48,0.00014996,2]
[337263673,1725555043302,-1089.79,0.00014996,2]
[337263674,1725555043312,-421.96,0.00014996,2]
[337263676,1725555043321,-576.93,0.00014996,2]
[337263677,1725555043331,-576.93,0.00014996,2]
[337263678,1725555043339,-654.98,0.00014996,2]
[337263679,1725555043349,-654.98,0.00014996,2]
[337263680,1725555043359,-308.06,0.00014996,2]
[337263681,1725555043368,-500.0,0.00014996,2]
[337263682,1725555043378,-500.0,0.00014996,2]
[337263683,1725555043390,-691.55,0.00014996,2]
[337263684,1725555043399,-691.55,0.00014996,2]
[337263685,1725555043408,-736.66,0.00014996,2]
[337263686,1725555043417,-736.66,0.00014996,2]
[337263687,1725555043426,-651.37754407,0.00014996,2]
[337263688,1725555043437,-3508.05245593,0.00014996,2]
[337263689,1725555043447,-4159.43,0.00014996,2]
[337263690,1725555043458,-1711.63,0.00014996,2]
[337263691,1725555043467,-1711.63,0.00014996,2]
[337263692,1725555043477,-500.0,0.00014996,2]
[337263693,1725555043486,-500.0,0.00014996,2]
[337263694,1725555043495,-546.13,0.00014996,2]
[337263695,1725555043505,-546.13,0.00014996,2]
[337263696,1725555043515,-2017.66,0.00014996,2]
[337263697,1725555043524,-2017.66,0.00014996,2]
[337263698,1725555043541,-2239.21,0.00014996,2]
[337263699,1725555043555,-1113.35414407,0.00014996,2]
[337263700,1725555043591,-1125.85585593,0.00014996,2]
[337263701,1725555043600,-552.33,0.00014996,2]
[337263702,1725555043609,-552.33,0.00014996,2]
[337263703,1725555043619,-2305.04,0.00014996,2]
[337263704,1725555043631,-2305.04,0.00014996,2]
[337263705,1725555043642,-1966.94,0.00014996,2]
[337263706,1725555043651,-1966.94,0.00014996,2]
[337263707,1725555043661,-500.0,0.00014996,2]
[337263708,1725555043671,-500.0,0.00014996,2]
[337263709,1725555043681,-1247.06,0.00014996,2]
[337263710,1725555043691,-1247.06,0.00014996,2]
[337263711,1725555043701,-500.0,0.00014996,2]
[337263712,1725555043711,-500.0,0.00014996,2]
[337263713,1725555043721,-500.0,0.00014996,2]
[337263714,1725555043731,-500.0,0.00014996,2]
[337263715,1725555043741,-3696.27,0.00014996,2]
[337263716,1725555043751,-3696.27,0.00014996,2]
[337263718,1725555043761,-1472.62,0.00014996,2]
[337263719,1725555043771,-1472.62,0.00014996,2]
[337263721,1725555043780,-973.74,0.00014996,2]
[337263724,1725555043790,-973.74,0.00014996,2]
[337263726,1725555043800,-2143.49,0.00014996,2]
[337263728,1725555043810,-2143.49,0.00014996,2]
[337263730,1725555043819,-2223.56,0.00014996,2]
[337263732,1725555043830,-556.14,0.00014996,2]
[337263734,1725555043839,-2223.56,0.00014996,2]
[337263736,1725555043849,-556.14,0.00014996,2]
[337263748,1725555044055,-500.0,0.00014996,2]
[337263749,1725555044065,-500.0,0.00014996,2]
[337263750,1725555044075,-1809.37,0.00014996,2]
[337263751,1725555044084,-1809.37,0.00014996,2]
[337263752,1725555044094,-500.0,0.00014996,2]
[337263753,1725555044103,-500.0,0.00014996,2]
[337263754,1725555044113,-938.26,0.00014996,2]
[337263755,1725555044122,-938.26,0.00014996,2]
[337263756,1725555044135,-6127.26,0.00014996,2]
[337263757,1725555044144,-6127.26,0.00014996,2]
[337263758,1725555044153,-500.0,0.00014996,2]
[337263759,1725555044163,-500.0,0.00014996,2]
[337263760,1725555044172,-2302.7,0.00014996,2]
[337263761,1725555044181,-2302.7,0.00014996,2]
[337263762,1725555044191,-1037.86,0.00014996,2]
[337263763,1725555044200,-1037.86,0.00014996,2]
[337263764,1725555044209,-395.9,0.00014996,2]
[337263765,1725555044218,-1375.48,0.00014996,2]
[337263766,1725555044228,-1375.48,0.00014996,2]
[337263767,1725555044237,-500.0,0.00014996,2]
[337263768,1725555044246,-500.0,0.00014996,2]
[337263769,1725555044256,-500.0,0.00014996,2]
[337263770,1725555044265,-353.24,0.00014996,2]
[337263771,1725555044274,-556.49,0.00014996,2]
[337263772,1725555044284,-556.49,0.00014996,2]
[337263773,1725555044294,-500.0,0.00014996,2]
[337263774,1725555044303,-2491.45,0.00014996,2]
[337263775,1725555044312,-500.0,0.00014996,2]
[337263776,1725555044321,-2491.45,0.00014996,2]
[337263777,1725555044330,-619.75,0.00014996,2]
[337263778,1725555044340,-548.18,0.00014996,2]
[337263779,1725555044349,-548.18,0.00014996,2]
[337263780,1725555044359,-524.48,0.00014996,2]
[337263781,1725555044368,-524.48,0.00014996,2]
[337263782,1725555044377,-871.73,0.00014996,2]
[337263783,1725555044395,-871.73,0.00014996,2]
[337263784,1725555044405,-4516.97,0.00014996,2]
[337263785,1725555044414,-4516.97,0.00014996,2]
[337263786,1725555044424,-1943.95,0.00014996,2]
[337263787,1725555044433,-1943.95,0.00014996,2]
[337263788,1725555044442,-500.0,0.00014996,2]
[337263789,1725555044452,-500.0,0.00014996,2]
[337263790,1725555044461,-195.94703694,0.00014996,2]
[337263791,1725555044471,-1545.88,0.00014996,2]
[337263792,1725555044481,-1545.88,0.00014996,2]
[337263793,1725555044491,-500.0,0.00014996,2]
[337263794,1725555044500,-500.0,0.00014996,2]
[337263795,1725555044510,-870.22,0.00014996,2]
[337263796,1725555044520,-500.0,0.00014996,2]
[337263797,1725555044529,-870.22,0.00014996,2]
[337263798,1725555044540,-442.7,0.00014996,2]
[337263799,1725555044554,-584.87,0.00014997,2]
[337263800,1725555044564,-584.87,0.00014997,2]
[337263801,1725555044575,-584.87,0.00014997,2]
[337263802,1725555044585,-584.87,0.00014997,2]
[337263803,1725555044595,-584.87,0.00014997,2]
[337263804,1725555044606,-584.87,0.00014997,2]
[337263805,1725555044615,-584.87,0.00014997,2]
[337263806,1725555044626,-584.87,0.00014997,2]
[337263807,1725555044643,-584.87,0.00014997,2]
[337263808,1725555044653,-500.0,0.00014997,2]
[337263809,1725555044662,-500.0,0.00014997,2]
[337263810,1725555044672,-500.0,0.00014997,2]
[337263811,1725555044682,-500.0,0.00014997,2]
[337263812,1725555044692,-500.0,0.00014997,2]
[337263813,1725555044702,-500.0,0.00014997,2]
[337263814,1725555044712,-500.0,0.00014997,2]
[337263815,1725555044722,-500.0,0.00014997,2]
[337263816,1725555044732,-168.34,0.00014997,2]
[337263817,1725555044742,-190.29,0.00014997,2]
[337263818,1725555044751,-708.857,0.00014997,2]
[337263819,1725555044760,-500.0,0.00014997,2]
[337263820,1725555044770,-500.0,0.00014997,2]
[337263821,1725555044780,-500.0,0.00014997,2]
[337263822,1725555044789,-500.0,0.00014997,2]
[337263823,1725555044799,-500.0,0.00014997,2]
[337263824,1725555044809,-500.0,0.00014997,2]
[337263825,1725555044819,-500.0,0.00014997,2]
[337263826,1725555044828,-500.0,0.00014997,2]
[337263827,1725555044838,-500.0,0.00014997,2]
[337263828,1725555044848,-284.96024402,0.00014997,2]
[337263829,1725555044857,-500.0,0.00014997,2]
[337263830,1725555044867,-500.0,0.00014997,2]
[337263831,1725555044877,-500.0,0.00014997,2]
[337263832,1725555044889,-500.0,0.00014997,2]
[337263833,1725555044898,-500.0,0.00014997,2]
[337263834,1725555044908,-500.0,0.00014997,2]
[337263835,1725555044917,-500.0,0.00014997,2]
[337263836,1725555044927,-500.0,0.00014997,2]
[337263837,1725555044936,-500.0,0.00014997,2]
[337263838,1725555044947,-500.0,0.00014997,2]
[337263839,1725555044956,-500.0,0.00014997,2]
[337263840,1725555044965,-632.82,0.00014997,2]
[337263841,1725555044975,-500.0,0.00014997,2]
[337263842,1725555044984,-500.0,0.00014997,2]
[337263843,1725555044993,-500.0,0.00014997,2]
[337263844,1725555045003,-500.0,0.00014997,2]
[337263845,1725555045012,-500.0,0.00014997,2]
[337263846,1725555045021,-500.0,0.00014997,2]
[337263847,1725555045031,-500.0,0.00014997,2]
[337263848,1725555045040,-500.0,0.00014997,2]
[337263849,1725555045049,-500.0,0.00014997,2]
[337263850,1725555045060,-500.0,0.00014997,2]
[337263851,1725555045069,-500.0,0.00014997,2]
[337263852,1725555045079,-184.99,0.00014997,2]
[337263853,1725555045089,-989.81,0.00014997,2]
[337263854,1725555045098,-989.81,0.00014997,2]
[337263855,1725555045108,-989.81,0.00014997,2]
[337263856,1725555045117,-500.0,0.00014997,2]
[337263857,1725555045127,-500.0,0.00014997,2]
[337263858,1725555045138,-500.0,0.00014997,2]
[337263859,1725555045147,-500.0,0.00014997,2]
[337263860,1725555045157,-500.0,0.00014997,2]
[337263861,1725555045166,-500.0,0.00014997,2]
[337263862,1725555045175,-178.37,0.00014997,2]
[337263863,1725555045185,-1730.94,0.00014997,2]
[337263864,1725555045195,-1730.94,0.00014997,2]
[337263865,1725555045204,-1730.94,0.00014997,2]
[337263866,1725555045214,-1730.94,0.00014997,2]
[337263867,1725555045224,-1730.94,0.00014997,2]
[337263868,1725555045233,-1730.94,0.00014997,2]
[337263869,1725555045243,-1730.94,0.00014997,2]
[337263870,1725555045252,-1730.94,0.00014997,2]
[337263871,1725555045262,-1730.94,0.00014997,2]
[337263872,1725555045271,-500.0,0.00014997,2]
[337263873,1725555045280,-500.0,0.00014997,2]
[337263874,1725555045290,-500.0,0.00014997,2]
[337263875,1725555045299,-500.0,0.00014997,2]
[337263876,1725555045309,-4107.88,0.00014997,2]
[337263877,1725555045318,-500.0,0.00014997,2]
[337263878,1725555045328,-500.0,0.00014997,2]
[337263879,1725555045338,-224.89,0.00014997,2]
[337263880,1725555045347,-953.4,0.00014997,2]
[337263881,1725555045357,-953.4,0.00014997,2]
[337263882,1725555045367,-953.4,0.00014997,2]
[337263883,1725555045376,-953.4,0.00014997,2]
[337263884,1725555045389,-500.0,0.00014997,2]
[337263885,1725555045398,-500.0,0.00014997,2]
[337263886,1725555045407,-500.0,0.00014997,2]
[337263887,1725555045417,-500.0,0.00014997,2]
[337263888,1725555045427,-500.0,0.00014997,2]
[337263889,1725555045436,-500.0,0.00014997,2]
[337263890,1725555045445,-500.0,0.00014997,2]
[337263891,1725555045455,-500.0,0.00014997,2]
[337263892,1725555045464,-648.41,0.00014997,2]
[337263893,1725555045473,-500.0,0.00014997,2]
[337263894,1725555045482,-500.0,0.00014997,2]
[337263895,1725555045492,-500.0,0.00014997,2]
[337263896,1725555045501,-500.0,0.00014997,2]
[337263897,1725555045511,-500.0,0.00014997,2]
[337263898,1725555045521,-3940.89,0.00014997,2]
[337263899,1725555045530,-500.0,0.00014997,2]
[337263900,1725555045540,-500.0,0.00014997,2]
[337263901,1725555045552,-500.0,0.00014997,2]
[337263902,1725555045561,-500.0,0.00014997,2]
[337263903,1725555045571,-500.0,0.00014997,2]
[337263904,1725555045581,-5459.23,0.00014997,2]
[337263905,1725555045590,-2025.48,0.00014997,2]
[337263906,1725555045600,-1089.79,0.00014997,2]
[337263907,1725555045609,-1089.79,0.00014997,2]
[337263908,1725555045619,-1089.79,0.00014997,2]
[337263909,1725555045632,-1089.79,0.00014997,2]
[337263910,1725555045641,-2025.48,0.00014997,2]
[337263911,1725555045651,-2025.48,0.00014997,2]
[337263912,1725555045660,-2025.48,0.00014997,2]
[337263913,1725555045669,-576.93,0.00014997,2]
[337263914,1725555045679,-576.93,0.00014997,2]
[337263915,1725555045688,-576.93,0.00014997,2]
[337263916,1725555045698,-576.93,0.00014997,2]
[337263917,1725555045707,-654.98,0.00014997,2]
[337263918,1725555045717,-500.0,0.00014997,2]
[337263919,1725555045726,-691.55,0.00014997,2]
[337263920,1725555045735,-736.66,0.00014997,2]
[337263921,1725555045745,-736.66,0.00014997,2]
[337263922,1725555045754,-736.66,0.00014997,2]
[337263923,1725555045764,-4159.43,0.00014997,2]
[337263924,1725555045774,-4159.43,0.00014997,2]
[337263925,1725555045784,-4159.43,0.00014997,2]
[337263926,1725555045794,-1711.63,0.00014997,2]
[337263927,1725555045803,-1711.63,0.00014997,2]
[337263928,1725555045812,-1711.63,0.00014997,2]
[337263929,1725555045821,-1711.63,0.00014997,2]
[337263930,1725555045830,-500.0,0.00014997,2]
[337263931,1725555045839,-546.13,0.00014997,2]
[337263932,1725555045848,-2017.66,0.00014997,2]
[337263933,1725555045858,-2017.66,0.00014997,2]
[337263934,1725555045867,-2017.66,0.00014997,2]
[337263935,1725555045877,-2239.21,0.00014997,2]
[337263936,1725555045889,-552.33,0.00014997,2]
[337263937,1725555045898,-552.33,0.00014997,2]
[337263938,1725555045908,-552.33,0.00014997,2]
[337263939,1725555045917,-552.33,0.00014997,2]
[337263940,1725555045927,-1966.94,0.00014997,2]
[337263941,1725555045935,-500.0,0.00014997,2]
[337263942,1725555045945,-500.0,0.00014997,2]
[337263943,1725555045954,-500.0,0.00014997,2]
[337263944,1725555045963,-1247.06,0.00014997,2]
[337263945,1725555045973,-1247.06,0.00014997,2]
[337263946,1725555045982,-1247.06,0.00014997,2]
[337263947,1725555045991,-1247.06,0.00014997,2]
[337263948,1725555046000,-500.0,0.00014997,2]
[337263949,1725555046010,-164.1,0.00014997,2]
[337263950,1725555046019,-3696.27,0.00014997,2]
[337263951,1725555046029,-1472.62,0.00014997,2]
[337263952,1725555046038,-1472.62,0.00014997,2]
[337263953,1725555046048,-1472.62,0.00014997,2]
[337263954,1725555046057,-1472.62,0.00014997,2]
[337263955,1725555046066,-973.74,0.00014997,2]
[337263956,1725555046075,-2143.49,0.00014997,2]
[337263957,1725555046085,-2143.49,0.00014997,2]
[337263959,1725555046094,-2143.49,0.00014997,2]
[337263961,1725555046103,-2143.49,0.00014997,2]
[337263963,1725555046112,-2223.56,0.00014997,2]
[337263965,1725555046121,-556.14,0.00014997,2]
[337263967,1725555046133,-556.14,0.00014997,2]
[337263969,1725555046142,-556.14,0.00014997,2]
[337263970,1725555046151,-500.0,0.00014997,2]
[337263971,1725555046160,-500.0,0.00014997,2]
[337263972,1725555046169,-500.0,0.00014997,2]
[337263973,1725555046179,-500.0,0.00014997,2]
[337263974,1725555046188,-1809.37,0.00014997,2]
[337263975,1725555046197,-500.0,0.00014997,2]
[337263976,1725555046207,-500.0,0.00014997,2]
[337263977,1725555046216,-938.26,0.00014997,2]
[337263978,1725555046226,-500.0,0.00014997,2]
[337263979,1725555046234,-500.0,0.00014997,2]
[337263980,1725555046243,-938.26,0.00014997,2]
[337263981,1725555046252,-938.26,0.00014997,2]
[337263982,1725555046262,-938.26,0.00014997,2]
[337263983,1725555046271,-6127.26,0.00014997,2]
[337263984,1725555046281,-386.14,0.00014997,2]
[337263985,1725555046290,-2302.7,0.00014997,2]
[337263986,1725555046299,-1375.48,0.00014997,2]
[337263987,1725555046309,-1375.48,0.00014997,2]
[337263988,1725555046318,-1375.48,0.00014997,2]
[337263989,1725555046327,-1375.48,0.00014997,2]
[337263990,1725555046336,-556.49,0.00014997,2]
[337263991,1725555046347,-500.0,0.00014997,2]
[337263992,1725555046357,-500.0,0.00014997,2]
[337263993,1725555046366,-500.0,0.00014997,2]
[337263994,1725555046376,-500.0,0.00014997,2]
[337263995,1725555046388,-548.18,0.00014997,2]
[337263996,1725555046398,-524.48,0.00014997,2]
[337263997,1725555046408,-524.48,0.00014997,2]
[337263998,1725555046418,-524.48,0.00014997,2]
[337263999,1725555046428,-524.48,0.00014997,2]
[337264000,1725555046437,-871.73,0.00014997,2]
[337264001,1725555046447,-871.73,0.00014997,2]
[337264002,1725555046456,-871.73,0.00014997,2]
[337264003,1725555046465,-871.73,0.00014997,2]
[337264004,1725555046475,-1943.95,0.00014997,2]
[337264005,1725555046484,-500.0,0.00014997,2]
[337264006,1725555046493,-500.0,0.00014997,2]
[337264007,1725555046503,-500.0,0.00014997,2]
[337264008,1725555046512,-500.0,0.00014997,2]
[337264009,1725555046523,-500.0,0.00014997,2]
[337264010,1725555046533,-500.0,0.00014997,2]
[337264011,1725555046546,-500.0,0.00014997,2]
[337264012,1725555046557,-500.0,0.00014997,2]
[337264013,1725555046567,-584.87,0.00014998,2]
[337264014,1725555046576,-584.87,0.00014998,2]
[337264015,1725555046586,-584.87,0.00014998,2]
[337264016,1725555046596,-584.87,0.00014998,2]
[337264017,1725555046606,-584.87,0.00014998,2]
[337264018,1725555046617,-584.87,0.00014998,2]
[337264019,1725555046628,-584.87,0.00014998,2]
[337264020,1725555046637,-584.87,0.00014998,2]
[337264021,1725555046646,-584.87,0.00014998,2]
[337264022,1725555046655,-584.87,0.00014998,2]
[337264023,1725555046666,-1730.94,0.00014998,2]
[337264024,1725555046675,-1730.94,0.00014998,2]
[337264025,1725555046684,-1730.94,0.00014998,2]
[337264026,1725555046694,-1730.94,0.00014998,2]
[337264027,1725555046703,-1730.94,0.00014998,2]
[337264028,1725555046712,-1730.94,0.00014998,2]
[337264029,1725555046723,-1730.94,0.00014998,2]
[337264030,1725555046732,-1730.94,0.00014998,2]
[337264031,1725555046743,-1730.94,0.00014998,2]
[337264032,1725555046751,-1731.16824017,0.00014998,2]
[337264033,1725555046761,-4107.88,0.00014998,2]
[337264034,1725555046770,-4107.88,0.00014998,2]
[337264035,1725555046779,-4107.88,0.00014998,2]
[337264036,1725555046792,-3940.89,0.00014998,2]
[337264037,1725555046802,-3940.89,0.00014998,2]
[337264038,1725555046812,-3940.89,0.00014998,2]
[337264039,1725555046821,-5459.23,0.00014998,2]
[337264040,1725555046831,-5459.23,0.00014998,2]
[337264041,1725555046840,-5459.23,0.00014998,2]
[337264042,1725555046849,-654.98,0.00014998,2]
[337264043,1725555046858,-654.98,0.00014998,2]
[337264044,1725555046867,-654.98,0.00014998,2]
[337264045,1725555046877,-500.0,0.00014998,2]
[337264046,1725555046888,-419.7,0.00014998,2]
[337264047,1725555046897,-691.55,0.00014998,2]
[337264048,1725555046906,-691.55,0.00014998,2]
[337264049,1725555046916,-691.55,0.00014998,2]
[337264050,1725555046925,-500.0,0.00014998,2]
[337264051,1725555046935,-500.0,0.00014998,2]
[337264052,1725555046944,-500.0,0.00014998,2]
[337264053,1725555046954,-546.13,0.00014998,2]
[337264054,1725555046963,-546.13,0.00014998,2]
[337264055,1725555046974,-546.13,0.00014998,2]
[337264056,1725555046983,-2239.21,0.00014998,2]
[337264057,1725555046994,-2239.21,0.00014998,2]
[337264058,1725555047004,-2239.21,0.00014998,2]
[337264059,1725555047013,-2305.04,0.00014998,2]
[337264060,1725555047023,-2305.04,0.00014998,2]
[337264061,1725555047032,-2305.04,0.00014998,2]
[337264062,1725555047041,-2305.04,0.00014998,2]
[337264063,1725555047050,-2305.04,0.00014998,2]
[337264064,1725555047060,-1966.94,0.00014998,2]
[337264065,1725555047070,-1966.94,0.00014998,2]
[337264066,1725555047079,-1966.94,0.00014998,2]
[337264067,1725555047089,-500.0,0.00014998,2]
[337264068,1725555047242,-500.0,0.00014998,2]
[337264069,1725555047252,-442.20923431,0.00014998,2]
[337264070,1725555047262,-3696.27,0.00014998,2]
[337264071,1725555047271,-3696.27,0.00014998,2]
[337264072,1725555047281,-3696.27,0.00014998,2]
[337264073,1725555047290,-973.74,0.00014998,2]
[337264074,1725555047301,-973.74,0.00014998,2]
[337264075,1725555047310,-973.74,0.00014998,2]
[337264076,1725555047319,-2223.56,0.00014998,2]
[337264077,1725555047329,-2223.56,0.00014998,2]
[337264078,1725555047338,-2223.56,0.00014998,2]
[337264079,1725555047347,-1809.37,0.00014998,2]
[337264080,1725555047356,-1809.37,0.00014998,2]
[337264081,1725555047365,-1809.37,0.00014998,2]